Cogmind - Beta 14 @@@ ROGUE MODE // 2024.11.01 @ 23:51:26 Player: Ae Result: Destroyed by 96-45L(R) with Subdweller Beam Cannon Performance ------------- Evolutions (0) 0 Regions Visited (2) 400 Robots Destroyed (26) 130 Value Destroyed (536) 536 Prototype IDs (0) 0 Alien Tech Used (0) 0 Bonus (0) 0 TOTAL SCORE: 1066 Bonus ------- None Cogmind --------- Core Integrity 0/250 Matter 299/300 Energy 236/250 System Corruption 0% Temperature Cool (9) Movement Rolling (215) Ox9 Location -10/Subcaves Parts ------- > --- POWER (1) -------- Ion Engine > --- PROPULSION (2) --- Wheel > --- UTILITY (2) ------ Huge Storage Unit Makeshift Light Armor Plating > --- WEAPON (2) ------- Subdweller Laser Hammer > --- INVENTORY (25) --- Subdweller Power Source Subdweller Power Source Light Treads Wheel Subdweller Monowheel Heat Sink Subdweller Optics Subdweller Optics Seismic Detector Makeshift Light Armor Plating Subdweller Laser Subdweller Beam Cannon Light Assault Rifle Light Assault Rifle Subdweller Machine Gun Subdweller Machine Gun Barrage Gun Grenade Launcher Datajack Mining Laser Hammer Hammer Peak State ------------ > --- POWER ------------ Ion Engine > --- PROPULSION ------- Light Treads Wheel > --- UTILITY ---------- Huge Storage Unit Makeshift Light Armor Plating > --- WEAPON ----------- Subdweller Laser Assault Rifle > --- INVENTORY -------- Ion Engine Subdweller Power Source Subdweller Power Source Light Treads Wheel Subdweller Monowheel Heat Sink Subdweller Optics Subdweller Optics Seismic Detector Backup Plating I Subdweller Laser Subdweller Beam Cannon Light Assault Rifle Light Assault Rifle Subdweller Machine Gun Subdweller Machine Gun Grenade Launcher Datajack Mining Laser Hammer Hammer Hammer [Rating: 14] Favorites ----------- Power Ion Engine Engine Ion Engine Propulsion Aluminum Leg Treads Light Treads Leg Aluminum Leg Wheel Wheel Utility Huge Storage Unit Device Heat Sink Storage Huge Storage Unit Protection Backup Plating I Weapon Assault Rifle Energy Gun Particle Gun Ballistic Gun Assault Rifle Launcher Grenade Launcher Impact Weapon Hammer Build | -11 -10 -10 ------- Run | Yrd Mat Sub Slots Evolved . | . . . Power . | . . . Propulsion . | . . . Utility . | . . . Weapon . | . . . Parts Attached 26 | 7 13 6 Power 3 | 1 1 1 Engine 3 | 1 1 1 Core . | . . . Reactor . | . . . Propulsion 8 | 2 4 2 Treads 2 | . 1 1 Leg 4 | 2 2 . Wheel 2 | . 1 1 Hover . | . . . Flight . | . . . Utility 6 | 2 3 1 Device 2 | 1 1 . Storage 3 | 1 2 . Processor . | . . . Hackware . | . . . Protection 1 | . . 1 Artifact . | . . . Weapon 9 | 2 5 2 Energy Gun 4 | 1 2 1 Energy Cannon . | . . . Ballistic Gun 2 | 1 1 . Ballistic Cannon . | . . . Launcher 2 | . 2 . Special Weapon . | . . . Impact Weapon 1 | . . 1 Slashing Weapon . | . . . Piercing Weapon . | . . . Special Melee Weapon . | . . . Unidentified Prototypes . | . . . Parts Lost 5 | . . 5 Power 1 | . . 1 Propulsion 2 | . . 2 Utility . | . . . Weapon 2 | . . 2 Highest Loss Streak 3 | . . 3 To Critical Strikes . | . . . Average Slot Usage (%) 99 | . 99 99 Engine 14 | . 14 14 Treads 9 | . 4 17 Leg 11 | . 19 . Wheel 6 | . 4 10 Device 6 | . 10 . Storage 14 | . 14 14 Protection 7 | . 3 14 Energy Gun 13 | . 13 14 Ballistic Gun 13 | . 14 13 Peak Build Rating 14 | 7 9 14 Average Rating 8 | 4 8 10 On Entrance 5 | . 7 9 Naked Turns . | . . . Heaviest Build 95 | 13 91 95 Greatest Support 40 | 20 20 40 Greatest Overweight (x) 9 | . 9 9 Average Overweight (x) 3 | . 2 7 Largest Inventory Capacity 25 | 8 25 25 Average Capacity 17 | 7 12 25 Most Carried 24 | 8 14 24 Average Carried 12 | 4 9 17 Final Capacity 25 | 8 25 25 Final Carried 22 | 8 14 22 Class Distribution -------------------- 73% | Mutant 26% | Scavenger-Mutant Dominant Class ---------------- Mutant | -10/Materials Mutant | -10/Subcaves Resources | -11 -10 -10 ----------- Run | Yrd Mat Sub Matter Collected 674 | 262 219 193 Remotely . | . . . Salvage Created 788 | 146 383 259 Parts 63 | 13 31 19 Haulers Intercepted 2 | . 2 . Recyclers Shooed 1 | . 1 . Parts Field Recycled . | . . . Retrieved Matter . | . . . Parts Self-Destructed 9 | . . 9 Prevented . | . . . Kills | -11 -10 -10 ------- Run | Yrd Mat Sub Combat Hostiles Destroyed 16 | . 8 8 Melee 1 | . . 1 Guns 13 | . 6 7 AOE 2 | . 2 . Classes Destroyed 8 | 2 5 1 Worker 1 | . 1 . Builder 1 | . 1 . Tunneler 4 | 3 1 . Hauler 2 | . 2 . Recycler 2 | 1 1 . Swarmer 5 | . 3 2 Grunt 5 | . 5 . Subdweller 6 | . . 6 Best Kill Streak 4 | 4 4 2 Combat Bots Only 2 | . 2 2 Max Kills in Single Turn 2 | 1 2 1 Gunslinging . | . . . Exploded 1 | . 1 . Melee 1 | . . 1 Uniques/NPCs Destroyed . | . . . Combat | -11 -10 -10 -------- Run | Yrd Mat Sub Hostile Shots Fired 92 | . 35 57 Missed 32 | . 14 18 Damage Taken 1104 | . 281 823 Core 271 | . 24 247 Absorbed by Shields . | . . . Core Remaining (%) 100 | 100 . . Volleys Fired 68 | 5 38 25 Largest 2 | 2 2 2 Hottest 85 | 70 85 85 Shots Fired 126 | 10 71 45 Gun 121 | 10 66 45 Cannon . | . . . Launcher 5 | . 5 . Special . | . . . Kinetic 60 | 5 33 22 Thermal 61 | 5 33 23 Explosive 5 | . 5 . Electromagnetic . | . . . Robot Hit Streak 21 | 4 8 21 Robot Miss Streak 4 | 1 4 2 Penetration Max . | . . . Secondary Targets 3 | . 1 2 Max Gunslinging Chain 1 | . 1 1 Shots Hit Robots 86 | 7 39 40 Core Hits 41 | 5 23 13 Critical Kills 1 | . . 1 Critical Parts Destroyed 1 | . 1 . Critical Strikes 5 | 1 2 2 Burn 2 | 1 1 . Destroy 3 | . 1 2 Melee Attacks 4 | . . 4 Impact 4 | . . 4 Slashing . | . . . Piercing . | . . . Sneak Attacks . | . . . Combat Hostiles . | . . . Follow-up Attacks . | . . . Damage Inflicted 1517 | 89 777 651 Guns 1191 | 89 519 583 Cannons . | . . . Explosions 258 | . 258 . Melee 68 | . . 68 Ramming . | . . . Kinetic 551 | 51 282 218 Thermal 640 | 38 237 365 Explosive 258 | . 258 . Electromagnetic . | . . . Impact 68 | . . 68 Slashing . | . . . Piercing . | . . . Highest Corruption . | . . . Average Corruption . | . . . Corruption Purged . | . . . Corruption Blocked . | . . . Overload Shots . | . . . Overflow Damage . | . . . Projectiles . | . . . Explosions . | . . . Melee . | . . . Knockbacks 1 | . . 1 Impact 1 | . . 1 Kinetic . | . . . Secondary . | . . . Self-Inflicted Damage 30 | . 30 . Shots 2 | . 2 . Rammed . | . . . Targets Rammed . | . . . Kicked . | . . . Crushed . | . . . Highest Temperature 27 | 27 8 4 Average Temperature 9 | 12 2 4 Received Heat Transfer 261 | . 123 138 Siege Activations . | . . . Robots Corrupted . | . . . Combat Hostiles . | . . . Parts Fried . | . . . Impact Corruptions . | . . . Robots Melted . | . . . Combat Hostiles . | . . . Parts Melted 4 | . 2 2 Heat Transferred 1472 | 185 740 547 Parts Sabotaged . | . . . Parts Stolen . | . . . Parts Stripped . | . . . Power Chain Reactions . | . . . Alert | -11 -10 -10 ------- Run | Yrd Mat Sub Peak Influence 201 | 20 201 . Initial 13 | . 13 . Average 83 | 6 90 . Maximum Alert Level 1 | . 1 . Low Security (%) 88 | 100 86 . Level 1 11 | . 13 . Level 2 . | . . . Level 3 . | . . . Level 4 . | . . . Level 5 . | . . . High Security . | . . . Max Security . | . . . Squads Dispatched 3 | . 3 . Investigation 1 | . 1 . Extermination . | . . . Reinforcement 2 | . 2 . Assault . | . . . Garrison . | . . . Intercept . | . . . Searches Triggered . | . . . Construction Impeded . | . . . Haulers Reinforced . | . . . Active Scanning Responses . | . . . Cargo Convoy Interrupts . | . . . Stealth | -11 -10 -10 --------- Run | Yrd Mat Sub Distress Signals 3 | . 3 . Communications Jammed . | . . . Distress Signals . | . . . Times Spotted 29 | . 20 9 Peak Tracking Total 4 | . 4 2 Tactical Retreats . | . . . Traps | -11 -10 -10 ------- Run | Yrd Mat Sub Traps Triggered 1 | . 1 . Indirectly . | . . . Trap Hack Attempts . | . . . Triggered . | . . . Disarmed . | . . . Reprogrammed . | . . . Reused . | . . . Traps Extracted . | . . . Installed . | . . . Triggered . | . . . Machines | -11 -10 -10 ---------- Run | Yrd Mat Sub Machines Disabled . | . . . Max in Single Turn . | . . . Machines Repaired . | . . . Machines Dismantled . | . . . Machines Sabotaged . | . . . Overloaded Fab Kills . | . . . Hacking | -11 -10 -10 --------- Run | Yrd Mat Sub Machines Accessed 4 | . 4 . Terminals 3 | . 3 . Fabricators . | . . . Repair Stations 1 | . 1 . Recycling Units . | . . . Scanalyzers . | . . . Garrison Access . | . . . Total Hacks 10 | . 10 . Successful 5 | . 5 . Failed 5 | . 5 . Catastrophic . | . . . Database Lockouts . | . . . Manual 9 | . 9 . Terminals 9 | . 9 . Fabricators . | . . . Repair Stations 1 | . 1 . Recycling Units . | . . . Scanalyzers . | . . . Garrison Access . | . . . Terminal Hacks . | . . . Fabricator Hacks . | . . . Repair Station Hacks 1 | . 1 . Refit 1 | . 1 . Recycling Unit Hacks . | . . . Scanalyzer . | . . . Garrison Access Hacks . | . . . Unauthorized Hacks 4 | . 4 . Terminals 4 | . 4 . Botnet 2 | . 2 . Skim 2 | . 2 . Fabricators . | . . . Repair Stations . | . . . Recycling Units . | . . . Scanalyzers . | . . . Garrison Access . | . . . Data Cores Recovered . | . . . Used . | . . . Hacking Detections 3 | . 3 . Full Trace Events . | . . . Feedback Events . | . . . Feedback Blocked . | . . . Robot Schematics Acquired . | . . . Robots Built . | . . . Authchips . | . . . Time . | . . . Total Robot Build Rating . | . . . Part Schematics Acquired . | . . . Parts Built . | . . . Authchips . | . . . Time . | . . . Total Part Build Rating . | . . . Parts Repaired . | . . . Time . | . . . Parts Recycled . | . . . Recycled Matter . | . . . Retrieved Matter . | . . . Retrieved Components . | . . . Parts Scanalyzed . | . . . Part Schematics Acquired . | . . . Parts Damaged . | . . . Bothacking | -11 -10 -10 ------------ Run | Yrd Mat Sub Used RIF Installer . | . . . Robots Hacked . | . . . Non-combat . | . . . Combat . | . . . Robot Hacks Applied . | . . . Relay Couplers Released . | . . . Fabnet Peak Effective % . | . . . Robots Rewired . | . . . Allies Hacked . | . . . Hacks Repelled . | . . . Allies | -11 -10 -10 -------- Run | Yrd Mat Sub Total Allies . | . . . Largest Group . | . . . Highest-Rated Group . | . . . Highest-Rated Ally . | . . . Total Orders . | . . . Ally Attacks . | . . . Total Damage . | . . . Kills . | . . . Allies Corrupted . | . . . Allies Melted . | . . . Intel | -11 -10 -10 ------- Run | Yrd Mat Sub Robot Analysis Total . | . . . Derelict Logs Recovered . | . . . Drone Launches . | . . . Drone Recoveries . | . . . Exploration | -11 -10 -10 ------------- Run | Yrd Mat Sub Turns Passed 1753 | 96 1005 652 Spaces Moved 821 | 55 531 235 Core 6 | 6 . . Treads 38 | . . 38 Legs 419 | 49 370 . Wheels 358 | . 161 197 Hover . | . . . Flight . | . . . Fastest Speed 50 | 50 110 200 Average Speed 173 | 112 154 231 Slowest Speed 320 | 120 215 320 Overloaded Moves . | . . . Propulsion Burnouts . | . . . Robots Hopped . | . . . Cave-ins Triggered . | . . . Exploration Rate (%) 32 | 4 70 22 Regions Visited 2 Branch Regions 1 Pre-discovered Areas . | . . . Known Exits Taken . | . . . Unknown Exits Taken 2 | 1 1 . Scrap Searched 1 | . . 1 Spaces Dug . | . . . Terrain Destroyed 28 | . 28 . Melee . | . . . Projectile . | . . . AOE 28 | . 28 . Terrain Rammed . | . . . Walls Destroyed . | . . . Machines Disabled . | . . . Actions | -11 -10 -10 --------- Run | Yrd Mat Sub Total 1014 | 76 647 291 Wait 52 | . 46 6 Move 819 | 54 530 235 Hop . | . . . Pick Up 32 | 10 9 13 Fast Attach 5 | 5 . . Attach 6 | 2 . 4 Detach 1 | . 1 . Swap 15 | . 13 2 Drop 12 | . 10 2 Fire 68 | 5 38 25 Melee 4 | . . 4 Ram . | . . . Kick . | . . . Crush . | . . . Escape Stasis . | . . . Rewire . | . . . Trap . | . . . Miscellaneous . | . . . Route ------- -11/Scrapyard -10/Materials (discovered 4 exits: [*Mat] / [*Min x2] / [*Sub]) -10/Subcaves History --------- Turn | Location | Event 28 | -11/Scrapyard | Discovered new exit (range 15) 97 | -11/Scrapyard | Entered Materials 300 | -10/Materials | Build established: Mutant 509 | -10/Materials | Discovered new exit (range 10) 564 | -10/Materials | Discovered new exit (range 14) 565 | -10/Materials | Discovered new exit (range 10) 634 | -10/Materials | Build established: Scavenger-Mutant 1094 | -10/Materials | Discovered new exit (range 5) 1099 | -10/Materials | Build established: Mutant 1102 | -10/Materials | Entered Subcaves 1382 | -10/Subcaves | A swath of the cavern ceiling suddenly collapsed 1545 | -10/Subcaves | Disturbed a concealed Subdweller 1711 | -10/Subcaves | Core integrity fell below 50% 1749 | -10/Subcaves | Core integrity fell below 20% 1754 | -10/Subcaves | Destroyed by 96-45L(R) with Subdweller Beam Cannon Last Messages --------------- 01590_ Found Sub. Beam Cannon. 01590_ Found 60 Matter. 01595_ Acquired Sub. Beam Cannon. 01598_ Acquired Sub. Laser. 01622_ Subatomizers dissect the Aluminum Leg. 01674_ Dropped Backup Plating I. 01683_ Acquired Mak. Light Armor Plating. 01701_ Acquired Barrage Gun. 01704_ YL-QZF(R): "SUBHATE!" 01721_ YL-QZF(R) destroyed. 01724_ Acquired 13 matter. 01724_ Assault Rifle destroyed. 01726_ Subatomizers dissect the Backup Plating I, destroying it. 01730_ Ion Engine destroyed. 01736_ FU-RM3(R) affixes Scrap Shield Fragment to Scrap Shield. 01741_ FU-RM3(R) knocked back. 01743_ Lgt. Treads destroyed. 01748_ Disposable Heat Sink melted. 01748_ FU-RM3(R) destroyed. 01751_ Acquired 14 matter. Map ----- +----------------------------------------------------+ | ???????????????# #?????????????????????????? | | ??????????????## ##????????????????????????? | | ?????????????## #????????????????????????? | | ?????????????# #????????????????????????? | | ?????????????# #????????????????????????? | | ?????????????## ## ##????????????????????????? | | ??????????????##### ##?????????????????????????? | | ????????????????## #??????????????????????????? | | ????????????##### ##?????????????????????????? | | ????????????# #?????????????????????????? | | ???????# ##?????????????????????????? | | ??????# # ##????????????????????????? | | ??????### ## # ## ##???????????????????????? | | ????????###??####?# #???????????????????????? | | ??????????????????# #???????????????????????? | | ??????????????????# ## ##??????????????????????? | | ??????????????????## ### #??????????????????????? | | ???????????????????###?# ##?????????????????????? | | ???????????????????##### ##????????????????????? | | ???????????????##### ## ##???????????????????? | | ???????????????# ##??????????????????? | | ????????????????# ##?????????????????? | | ???????????????## & #?????????????????? | | ????????????#### *%= #?????????????????? | | ????????????# & ##?????????????????? | | ???????????# @ ##??????????????????? | | ???????????## ## ;# R #???????????????????? | | ????????????#### ?# ## #??????????????????? | | ???????????????# ?# ##?# ????????????????? | | ??????????????# ? ;####???# ??????????????? | | ????????????? ##????????# ????????????? | | ???????????? ##????????????[ ### #???????????? | | ??????????? #?????????????? ##???????????????? | | ?????????? ##???????????????? ##????????????????? | | ?????????##??????????????????????????????????????? | | ?????????????????????????????????????????????????? | | ?????????????????????????????????????????????????? | | ?????????????????????????????????????????????????? | | ?????????????????????????????????????????????????? | | ?????????????????????????????????????????????????? | | ?????????????????????????????????????????????????? | | ?????????????????????????????????????????????????? | | ?????????????????????????????????????????????????? | | ?????????????????????????????????????????????????? | | ?????????????????????????????????????????????????? | | ?????????????????????????????????????????????????? | | ?????????????????????????????????????????????????? | | ?????????????????????????????????????????????????? | | ?????????????????????????????????????????????????? | | ?????????????????????????????????????????????????? | +----------------------------------------------------+ Best States ------------- Heat Dissipation 35 Energy Generation 10 Energy Capacity 250 Matter Stores 300 Matter Capacity 300 Sight Range 16 Terrain Scan Density 10 Armor Coverage 100 Evasion (%) 55 Recoil Reduction 2 Item Schematics ----------------- None Robot Schematics ------------------ None Fabricated ------------ Nothing Alien Tech Used ----------------- None Achievements -------------- None Challenges ------------ None Game ------ Seed ConcussiveSpreadKatana Manual? 0 Play Time 00:15:48 Cumulative 89.1 hours Start 2024.11.01 @ 23:37:50 End 2024.11.01 @ 23:51:26 Sessions 1 Manual Loads 0 Difficulty Rogue Special Mode None Game No. 150 Rogue 122 Adventurer 28 Explorer 0 Win Type - Total 0 Types 0/0/0/0/0/0/0/0/0 Lore% 32 Gallery% 31 Achievement% 32 Wizard Run 0 Options --------- Layout 0 ASCII 0 Keyboard 1 Movement Numpad Keybinds 0 Fullscreen 2 Font 36/Smallcaps Map View 76x50 Zoom Use 1% Tactical HUD 1 Map Filters NONE Filters NONE Steam 1 RUN: 0e1461d4-9c90-427a-86de-adbf7bc698f9